bitfinex/quotes_ETHUSD_20250328
["timestamp","ask_amount","ask_price","bid_price","bid_amount"]
[1743158560243,8.59757791,1914.5,1914.1,0.8269]
[1743158560244,5.22369,1914.4,1914.1,0.8269]
[1743158560445,10.84287648,1914.6,1914.2,7.55382091]
[1743158560941,5.22332,1914.5,1914.2,7.55382091]
[1743158561470,1.55305091,1914.5,1914.2,0.7769]
[1743158561770,5.2237,1914.4,1914.2,0.7769]
[1743158562577,10.44746,1914.4,1914.2,0.7769]
[1743158562874,5.22384,1914.3,1914.2,0.7769]
[1743158563070,5.22384,1914.3,1914.1,0.05]
[1743158563274,5.22411,1914.2,1914.1,0.05]
[1743158563574,5.22411,1914.2,1914.1,0.25096218]
[1743158563768,5.22384,1914.3,1914.1,0.25096218]
[1743158564373,5.2236,1914.4,1914.1,1.31877639]
[1743158564578,5.2236,1914.4,1914.2,0.7957]
[1743158565077,5.2236,1914.4,1914.3,0.20096218]
[1743158570687,6.77665091,1914.4,1914.3,0.20096218]
[1743158570989,5.2236,1914.4,1914.3,0.20096218]
[1743158579076,5.22331,1914.5,1914.3,0.98696218]
[1743158579990,10.44677,1914.5,1914.3,0.98696218]
[1743158580166,5.22331,1914.5,1914.3,0.98696218]
[1743158581494,5.97889,1914.8,1914.4,7.52647091]
[1743158581495,5.22261,1914.8,1914.4,7.52647091]
[1743158581663,5.22261,1914.8,1914.6,0.75]
[1743158581988,5.22261,1914.8,1914.7,0.19820133]
[1743158582367,6.77566091,1914.8,1914.7,0.19820133]
[1743158582967,6.77566091,1914.8,1914.4,0.8275]
[1743158582968,5.22325,1914.6,1914.4,0.8275]
[1743158583297,5.22323,1914.6,1914.5,0.19820133]
[1743158583899,10.44642,1914.6,1914.3,0.7752]
[1743158584102,10.44642,1914.6,1914.5,0.19820133]
[1743158584399,5.22319,1914.6,1914.5,0.19820133]
[1743158584595,5.22319,1914.6,1914.3,2.32825091]
[1743158584799,5.22319,1914.6,1914.4,0.19820133]
[1743158585001,5.22319,1914.6,1914.3,2.32825091]
[1743158585199,5.22319,1914.6,1914.4,0.19820133]
[1743158585396,5.22319,1914.6,1914.3,4.097268]
[1743158585602,5.22319,1914.6,1914.4,0.19820133]
[1743158585900,5.22319,1914.6,1914.3,4.097268]
[1743158586100,5.22319,1914.6,1914.5,0.19820133]
[1743158586325,5.22319,1914.6,1914.3,2.32825091]
[1743158586617,5.22319,1914.6,1914.3,4.097268]
[1743158586816,5.22319,1914.6,1914.4,0.19820133]
[1743158587100,5.22319,1914.6,1914.3,4.097268]
[1743158587297,5.22319,1914.6,1914.5,0.19820133]
[1743158587476,0.38432255,1914.9,1914.5,1.55305091]
[1743158587678,7.07278118,1915.1,1914.7,7.57746091]
[1743158587886,5.22171,1915.1,1914.8,2.310797]
[1743158588085,10.44355,1915.1,1914.8,2.50801258]
[1743158588281,10.44359,1915.1,1914.8,2.50801258]
[1743158588799,5.22171,1915.1,1914.8,2.50801258]
[1743158589004,5.2222,1914.9,1914.8,0.19721558]
[1743158589382,5.2222,1914.9,1914.8,14.69721558]
[1743158589801,5.22207,1915.0,1914.8,19.61021558]
[1743158589993,10.44419,1915.0,1914.8,19.61021558]
[1743158590202,5.22207,1915.0,1914.8,19.61021558]
[1743158590788,5.22207,1915.0,1914.8,5.11021558]
[1743158590987,10.44416,1915.0,1914.8,5.11021558]
[1743158591279,5.2222,1914.9,1914.8,5.11021558]
[1743158592098,5.22207,1915.0,1914.8,5.11021558]
[1743158593379,5.22207,1915.0,1914.8,6.22369814]
[1743158594508,5.2222,1914.9,1914.8,5.11021558]
[1743158596717,5.22207,1915.0,1914.8,5.11021558]
[1743158598116,5.22166,1915.1,1914.9,0.8278]
[1743158598413,5.22166,1915.1,1915.0,0.19360175]
[1743158598794,5.22144,1915.2,1915.0,0.19360175]
[1743158599199,5.22144,1915.2,1915.0,15.31795893]
[1743158599587,0.39876457,1915.3,1915.0,20.53986893]
[1743158599901,5.22085,1915.4,1915.0,20.53986893]
[1743158600280,5.22113,1915.3,1915.0,20.53986893]
[1743158600498,10.44243,1915.3,1915.0,15.31795893]
[1743158601192,5.22144,1915.2,1915.0,15.31795893]
[1743158602114,5.22113,1915.3,1915.1,1.53179589]
[1743158602628,5.22113,1915.3,1915.2,0.19360175]
[1743158602789,5.22113,1915.3,1915.2,0.7889]
[1743158602988,5.22113,1915.3,1915.2,0.98250175]
[1743158604415,5.22113,1915.3,1915.2,0.19360175]
[1743158604729,5.22113,1915.3,1915.0,21.10777718]
[1743158604930,5.22113,1915.3,1915.2,0.19169708]
[1743158605150,5.22113,1915.3,1915.0,21.10777718]
[1743158605351,5.22113,1915.3,1915.2,0.19169708]
[1743158605553,10.44242,1915.3,1915.0,15.2615]
[1743158606142,5.22147,1915.2,1915.1,0.19169708]
[1743158606512,6.26573,1915.2,1915.1,0.19169708]
[1743158606911,5.22179,1915.1,1914.9,4.911]
[1743158607764,5.22147,1915.2,1914.9,10.13317]
[1743158608328,5.22147,1915.2,1914.9,4.911]
[1743158608521,5.22112,1915.3,1915.0,6.00652]
[1743158608723,5.22112,1915.3,1915.0,7.295191]
[1743158608922,5.22112,1915.3,1915.0,7.295091]
[1743158609154,5.22112,1915.3,1915.0,2.073271]
[1743158609462,5.22112,1915.3,1915.1,14.5]
[1743158610119,5.22112,1915.3,1915.2,0.19169708]
[1743158610829,5.22112,1915.3,1915.1,14.5]
[1743158611029,5.22112,1915.3,1915.2,0.19169708]
[1743158611386,5.22112,1915.3,1915.0,1.88157392]
[1743158611658,5.2216,1915.2,1915.0,1.88157392]
[1743158611862,10.44317,1915.2,1915.1,0.19169708]
[1743158612019,5.22157,1915.2,1915.1,0.19169708]
[1743158615876,6.265841,1915.2,1915.1,0.19169708]
[1743158616244,5.22157,1915.2,1915.1,0.19169708]
[1743158618866,5.22192,1915.1,1914.9,4.91]
[1743158619466,10.44405,1915.0,1914.9,4.91]
[1743158620263,11.20285,1915.0,1914.9,4.91]
[1743158621952,5.22275,1914.7,1914.6,27.619]
[1743158623156,5.22339,1914.5,1914.3,4.91]
[1743158623665,5.22339,1914.5,1914.4,0.14788164]
[1743158623835,5.22339,1914.5,1914.3,4.91]
[1743158624036,5.22339,1914.5,1914.4,0.14788164]
[1743158624443,10.44688,1914.5,1914.3,6.001929]
[1743158624657,5.22339,1914.5,1914.4,0.15057279]
[1743158624857,5.22339,1914.5,1914.3,6.001929]
[1743158625058,5.22339,1914.5,1914.4,0.15057279]
[1743158625260,5.22339,1914.5,1914.3,6.001929]
[1743158625441,5.22339,1914.5,1914.4,0.15057279]
[1743158625847,5.22339,1914.5,1914.3,6.001929]
[1743158626047,5.22339,1914.5,1914.4,0.15057279]
[1743158626268,5.22339,1914.5,1914.3,6.001929]
[1743158626468,5.22339,1914.5,1914.4,0.15057279]
[1743158626670,5.22339,1914.5,1914.3,6.001929]
[1743158626842,5.22339,1914.5,1914.4,0.15057279]
[1743158627040,5.22339,1914.5,1914.3,6.001929]
[1743158627263,5.22339,1914.5,1914.4,0.15057279]
[1743158627464,5.22339,1914.5,1914.3,6.001929]
[1743158627661,5.22339,1914.5,1914.4,0.15057279]
[1743158627973,5.22339,1914.5,1914.3,6.001929]
[1743158628163,5.22339,1914.5,1914.4,14.65057279]
[1743158630674,5.22303,1914.6,1914.4,16.71582297]
[1743158630879,5.22303,1914.6,1914.4,17.54402297]
[1743158631470,10.44621,1914.6,1914.4,17.54402297]
[1743158634481,10.44621,1914.6,1914.4,16.71582297]
[1743158635980,5.22303,1914.6,1914.4,16.71582297]
[1743158637585,5.22303,1914.6,1914.4,2.21582297]
[1743158638467,0.7781,1914.8,1914.5,5.22305]
[1743158638668,0.7941,1915.3,1914.6,4.05431814]
[1743158638897,5.22175,1915.1,1914.7,10.13375]
[1743158639052,5.22195,1915.0,1914.7,10.13375]
[1743158639256,5.22195,1915.0,1914.8,0.1520167]
[1743158639767,5.22175,1915.1,1914.8,0.1520167]
[1743158639768,10.44358,1915.1,1914.8,0.1520167]
[1743158640150,5.22175,1915.1,1914.8,2.63059337]
[1743158640362,2.9773033,1915.2,1914.9,0.8143]
[1743158640363,5.22139,1915.2,1914.9,0.8143]
[1743158640568,5.22139,1915.2,1914.9,20.5365]
[1743158640771,5.22139,1915.2,1915.0,0.1507041]
[1743158641377,5.22165,1915.1,1915.0,0.1507041]
[1743158642169,5.22164,1915.2,1915.0,0.1507041]
[1743158642767,5.22164,1915.2,1915.0,14.6507041]
[1743158642963,10.44322,1915.2,1915.0,14.6507041]
[1743158643164,5.22165,1915.1,1915.0,14.6507041]
[1743158643490,5.22158,1915.2,1915.0,14.6507041]
[1743158643699,10.44313,1915.2,1915.0,14.6507041]
[1743158643908,5.22155,1915.2,1915.0,14.6507041]
[1743158644093,5.22155,1915.2,1915.0,16.19720451]
[1743158647187,5.22155,1915.2,1915.0,1.69720451]
[1743158647386,10.44316,1915.2,1915.0,0.1507041]
[1743158650722,5.22155,1915.2,1915.0,0.1507041]
[1743158650922,16.02821226,1915.3,1915.0,0.1507041]
[1743158651218,5.22143,1915.2,1915.0,0.1507041]
[1743158651432,10.44302,1915.2,1915.0,0.1507041]
[1743158651584,5.22165,1915.1,1915.0,0.1507041]
[1743158651782,5.22143,1915.2,1915.0,0.1507041]
[1743158652178,10.44303,1915.2,1915.0,0.1507041]
[1743158654922,11.99421713,1915.2,1915.0,0.1507041]
[1743158656237,5.22165,1915.1,1915.0,0.1507041]
[1743158657109,6.77283713,1915.1,1915.0,5.0597041]
[1743158657535,5.22165,1915.1,1915.0,5.0597041]
[1743158661546,11.99417713,1915.2,1915.0,5.0597041]
[1743158662044,5.22165,1915.1,1915.0,5.0597041]
[1743158664735,8.77496384,1915.1,1915.0,0.1507041]
[1743158665113,5.2222,1914.9,1914.8,4.909]
[1743158666451,6.77338713,1914.9,1914.8,4.909]
[1743158666621,7.60148713,1914.9,1914.8,4.909]
[1743158666935,8.85619045,1914.9,1914.8,4.909]
[1743158668530,5.22289,1914.7,1914.5,27.62]
[1743158668730,6.77407713,1914.7,1914.5,32.529]
[1743158668954,5.22289,1914.7,1914.5,32.529]
[1743158671215,6.77407713,1914.7,1914.5,32.529]
[1743158671402,6.77407713,1914.7,1914.5,4.909]
[1743158671607,5.22289,1914.7,1914.5,4.909]
[1743158675836,6.77374713,1914.8,1914.5,4.909]
[1743158676026,6.77374713,1914.8,1914.5,11.667876]
[1743158676636,5.22256,1914.8,1914.6,0.8206]
[1743158676807,0.7872,1915.1,1914.6,7.64694588]
[1743158676808,5.22204,1915.0,1914.6,7.64694588]
[1743158677003,6.77259713,1915.2,1914.9,0.7846]
[1743158677233,5.89891971,1915.1,1914.9,0.7846]
[1743158677514,5.22166,1915.1,1914.9,0.7846]
[1743158678041,5.22166,1915.1,1914.9,5.6936]
[1743158679134,6.77284713,1915.1,1914.9,4.909]
[1743158679319,1.55118713,1915.0,1914.9,4.909]
[1743158679706,6.77311713,1915.0,1914.9,4.909]
[1743158680619,5.22193,1915.0,1914.9,4.909]
[1743158681018,6.77284713,1915.1,1914.9,4.909]
[1743158682550,5.22166,1915.1,1914.9,4.909]
[1743158682854,6.77260713,1915.2,1914.9,10.65918369]
[1743158683020,5.22142,1915.2,1914.9,10.65918369]
[1743158683219,6.77260713,1915.2,1914.9,10.65918369]
[1743158683441,6.77260713,1915.2,1914.9,11.46358369]
[1743158683637,1.55118713,1915.2,1915.0,5.35808103]
[1743158683852,7.53480713,1915.3,1915.0,0.13629103]
[1743158684064,1.55118713,1915.2,1915.0,0.13629103]
[1743158684922,5.22139,1915.2,1915.0,0.13629103]
[1743158686652,5.60625947,1915.3,1915.0,0.13629103]
[1743158686854,5.60625947,1915.3,1915.0,7.0403455]
[1743158687156,5.22112,1915.3,1915.0,7.0403455]
[1743158687523,10.44242,1915.3,1915.0,1.8184655]
[1743158688555,5.22112,1915.3,1915.0,1.8184655]
[1743158690264,5.22112,1915.3,1915.0,7.0403355]
[1743158690423,6.37437146,1915.4,1915.0,7.0401855]
[1743158690624,5.98089,1915.4,1915.0,12.2619955]
[1743158690825,5.98089,1915.4,1915.1,1.22619955]
[1743158691041,5.98089,1915.4,1915.2,0.13471628]
[1743158691254,8.22072,1915.5,1915.2,0.8322]
[1743158691426,1.798901,1915.8,1915.3,10.31286341]
[1743158691757,5.22056,1915.5,1915.4,1.03128634]
[1743158691934,5.22056,1915.5,1915.3,5.03976347]
[1743158692137,5.22056,1915.5,1915.3,4.908]
[1743158692339,5.22056,1915.5,1915.4,0.13176347]
[1743158692730,5.22041,1915.6,1915.4,0.13176347]
[1743158692936,10.4409,1915.6,1915.4,0.13176347]
[1743158694037,5.22056,1915.5,1915.4,0.13176347]
[1743158698358,5.98806,1915.5,1915.4,0.13176347]
[1743158698667,5.22111,1915.3,1915.2,4.907]
[1743158698982,5.22111,1915.3,1915.2,5.03758274]
[1743158699626,5.22111,1915.3,1915.2,0.13058274]
[1743158699834,5.22138,1915.2,1915.1,4.907]
[1743158700155,5.22138,1915.2,1915.1,5.03758274]
[1743158702251,12.69831302,1915.2,1915.1,0.13058274]
[1743158702447,5.2222,1914.9,1914.8,4.907]
[1743158702761,5.2222,1914.9,1914.5,28.4441]
[1743158702762,5.22276,1914.7,1914.5,28.4441]
[1743158703068,5.22276,1914.7,1914.5,27.614]
[1743158703267,10.4457,1914.7,1914.5,27.614]
[1743158703564,5.22302,1914.6,1914.5,27.614]
[1743158706359,5.22222,1914.9,1914.6,0.8105]
[1743158706663,5.22193,1915.0,1914.7,4.907]
[1743158706838,5.22244,1914.9,1914.7,4.907]
[1743158707037,5.22244,1914.9,1914.8,14.5]
[1743158707764,5.22247,1914.8,1914.7,4.907]
[1743158708136,5.22247,1914.8,1914.7,19.407]
[1743158708537,12.11064309,1914.8,1914.7,4.907]
[1743158708939,12.11064309,1914.8,1914.5,27.614]
[1743158708940,5.22294,1914.7,1914.6,14.5]
[1743158709163,8.22251,1914.8,1914.6,14.5]
[1743158709339,5.22251,1914.8,1914.6,14.5]
[1743158711070,5.22221,1914.9,1914.6,14.5]
[1743158711368,5.22181,1915.1,1914.8,0.7896]
[1743158711600,5.22181,1915.1,1914.9,4.907]
[1743158712083,5.22193,1915.0,1914.9,19.407]
[1743158712377,13.02882554,1915.1,1914.9,4.907]
[1743158712582,10.44366,1915.1,1914.9,4.907]
[1743158713281,5.22193,1915.0,1914.9,4.907]
[1743158713440,5.22193,1915.0,1914.9,5.04073183]
[1743158714469,5.22171,1915.1,1914.9,5.04073183]
[1743158714775,5.22193,1915.0,1914.9,5.04073183]
[1743158718187,6.52454055,1915.1,1914.9,5.04073183]
[1743158718357,10.44357,1915.1,1914.9,5.04073183]
[1743158719563,8.22149,1915.2,1914.9,5.04073183]
[1743158719758,13.44305,1915.2,1914.9,5.87313183]
[1743158720369,13.83678949,1915.2,1914.9,5.87313183]
[1743158720580,5.22166,1915.1,1914.9,5.87313183]
[1743158723004,5.22166,1915.1,1914.9,5.04073183]
[1743158723367,5.22193,1915.0,1914.9,5.04073183]
[1743158724172,5.22193,1915.0,1914.9,0.13373183]
[1743158724486,6.266289,1915.0,1914.9,0.13373183]
[1743158724688,5.22231,1914.9,1914.5,12.27480457]
[1743158724857,10.44469,1914.9,1914.6,4.907]
[1743158725207,5.2225,1914.8,1914.5,21.55158457]
[1743158725406,5.2225,1914.8,1914.5,7.05158457]
[1743158725612,5.2225,1914.8,1914.6,4.907]
[1743158726862,7.80766554,1914.8,1914.6,4.907]
[1743158727062,5.22275,1914.7,1914.6,4.907]
[1743158728090,10.44571,1914.7,1914.5,19.407]
[1743158728688,2.58516554,1914.6,1914.3,27.618]
[1743158729012,5.22352,1914.5,1914.3,32.525]
[1743158729899,5.22352,1914.5,1914.3,32.525]
[1743158730270,5.22356,1914.4,1914.3,32.525]
[1743158730765,8.61322554,1914.4,1914.3,27.618]
[1743158730965,6.02806,1914.4,1914.2,4.908]
[1743158731474,5.22356,1914.4,1914.2,4.908]
[1743158732277,10.4473,1914.4,1914.2,4.908]
[1743158732684,5.22384,1914.3,1914.2,4.908]
[1743158733288,10.44732,1914.4,1914.2,4.908]
[1743158733505,5.22384,1914.3,1914.2,4.908]
[1743158734772,5.22356,1914.4,1914.2,4.908]
[1743158735078,5.22356,1914.4,1914.2,20.2148]
[1743158735300,5.22356,1914.4,1914.2,19.408]
[1743158735498,5.22384,1914.3,1914.2,19.408]
[1743158735796,5.22384,1914.3,1914.2,14.5]
[1743158735993,5.22384,1914.3,1914.2,19.408]
[1743158736199,5.22384,1914.3,1914.2,4.908]
[1743158736803,5.22384,1914.3,1914.2,19.408]
[1743158742312,5.22411,1914.2,1914.1,0.05]
[1743158742607,6.04571,1914.2,1914.1,4.958]
[1743158743601,8.63087554,1914.2,1914.1,0.19042646]
[1743158743769,0.8216,1914.2,1914.1,0.19042646]
[1743158744278,10.44785,1914.3,1914.1,0.19042646]
[1743158744682,6.0294,1914.4,1914.1,0.19042646]
[1743158744877,5.22405,1914.3,1914.1,1.02342646]
[1743158745077,5.224,1914.3,1914.1,1.02342646]
[1743158745575,5.224,1914.3,1914.2,14.5]
[1743158745788,5.224,1914.3,1914.2,14.6432494]
[1743158746827,5.224,1914.3,1914.2,0.1432494]
[1743158747625,5.22384,1914.3,1914.2,14.5]
[1743158747797,5.22384,1914.3,1914.2,14.6432494]
[1743158747980,5.22384,1914.3,1914.2,0.1432494]
[1743158748230,5.22384,1914.3,1914.1,0.883]
[1743158748433,5.22384,1914.3,1914.2,0.1432494]
[1743158748596,5.22384,1914.3,1914.1,15.383]
[1743158748780,10.44784,1914.3,1914.2,0.1432494]
[1743158749116,10.44784,1914.3,1914.1,0.05]
[1743158749408,10.44784,1914.3,1914.2,0.1432494]
[1743158749609,10.44784,1914.3,1914.1,0.05]
[1743158749805,5.22411,1914.2,1914.1,0.05]
[1743158750017,5.22411,1914.2,1914.1,4.959]
[1743158758689,5.22411,1914.2,1914.1,5.10297173]
[1743158759621,8.61387554,1914.2,1914.1,0.19397173]
[1743158760317,8.87393205,1914.2,1914.1,0.19397173]
[1743158760523,10.02365275,1914.2,1914.1,0.19397173]
[1743158764433,5.2247,1914.0,1913.8,19.05297173]
[1743158764598,7.80986554,1914.0,1913.8,19.05297173]
[1743158765229,8.21009372,1914.0,1913.8,19.05297173]
[1743158766736,8.21009372,1914.0,1913.8,4.55297173]
[1743158767097,7.80986554,1914.0,1913.8,4.55297173]
[1743158767297,7.80986554,1914.0,1913.9,14.5]
[1743158767838,5.2247,1914.0,1913.9,14.5]
[1743158768027,5.2244,1914.1,1913.9,14.5]
[1743158768326,5.2236,1914.4,1914.0,6.05193]
[1743158768531,5.22385,1914.3,1914.0,6.05193]
[1743158768901,5.22385,1914.3,1914.1,14.5]
[1743158769616,10.44734,1914.4,1914.2,5.6974]
[1743158769935,5.2236,1914.4,1914.2,5.6974]
[1743158770997,10.83736532,1914.5,1914.2,5.6974]
[1743158772026,10.4468,1914.5,1914.2,5.6974]
[1743158772215,0.766,1914.7,1914.3,0.10779987]
[1743158772533,1.02488681,1914.9,1914.5,5.22311]
[1743158772534,5.22224,1914.9,1914.5,5.22311]
[1743158772832,5.22196,1915.0,1914.6,6.1052239]
[1743158773003,10.44407,1915.0,1914.6,6.1052239]
[1743158773403,10.44461,1914.9,1914.6,0.8822439]
[1743158773620,5.22248,1914.8,1914.6,0.8822439]
[1743158775035,5.22275,1914.7,1914.6,0.8822439]
[1743158775736,5.22248,1914.8,1914.6,0.8822439]
[1743158776451,10.44513,1914.8,1914.6,0.8822439]
[1743158776834,7.80791554,1914.7,1914.6,5.0151439]
[1743158777822,7.80791554,1914.7,1914.6,0.1071439]
[1743158778018,5.22329,1914.5,1914.4,4.908]
[1743158778852,5.22329,1914.5,1914.4,5.01311083]
[1743158779054,5.22329,1914.5,1914.4,4.908]
[1743158779266,5.99554,1914.7,1914.4,4.908]
[1743158779465,5.22284,1914.7,1914.5,0.8306]
[1743158780359,10.44576,1914.7,1914.5,0.8306]
[1743158780773,5.22284,1914.7,1914.5,0.8306]
[1743158782071,10.44579,1914.7,1914.5,0.8306]
[1743158782472,5.22302,1914.6,1914.5,0.8306]
[1743158782651,5.2237,1914.4,1914.3,4.908]
[1743158783369,7.80845554,1914.5,1914.3,4.908]
[1743158783370,5.22329,1914.5,1914.3,4.908]
[1743158783571,5.22304,1914.6,1914.3,4.908]
[1743158783944,5.22304,1914.6,1914.4,0.8111]
[1743158784675,5.22275,1914.7,1914.4,0.8111]
[1743158784844,10.44569,1914.7,1914.4,0.8111]
[1743158785046,8.22249,1914.8,1914.4,6.03462]
[1743158785363,13.44513,1914.8,1914.4,6.03454]
[1743158785944,5.22275,1914.7,1914.4,6.03454]
[1743158786444,3.0,1914.8,1914.5,5.22327]
[1743158786639,8.22248,1914.8,1914.6,0.8275]
[1743158787457,8.22248,1914.8,1914.6,15.3275]
[1743158787776,8.22248,1914.8,1914.7,4.907]
[1743158790177,5.22222,1914.9,1914.7,4.907]
[1743158791873,5.22247,1914.8,1914.7,4.907]
[1743158793843,12.86742109,1914.8,1914.7,4.907]
[1743158794249,9.52545555,1914.8,1914.7,4.907]
[1743158795074,12.11062109,1914.8,1914.7,4.907]
[1743158795783,5.22312,1914.6,1914.4,0.7555]
[1743158795990,5.22312,1914.6,1914.5,4.907]
[1743158796282,5.22329,1914.5,1914.4,0.7555]
[1743158796479,5.22329,1914.5,1914.4,4.907]
[1743158796846,5.22356,1914.4,1914.2,14.5]
[1743158797071,5.22356,1914.4,1914.3,4.907]
[1743158800167,5.22329,1914.5,1914.3,4.907]
[1743158800555,3.0,1914.7,1914.4,20.52113]
[1743158800759,5.22253,1914.8,1914.4,25.74456]
[1743158801181,8.22288,1914.7,1914.4,20.52113]
[1743158802287,13.44578,1914.7,1914.4,15.2978]
[1743158802676,8.22288,1914.7,1914.4,15.2978]
[1743158803471,13.44578,1914.7,1914.4,15.2978]
[1743158804055,5.22311,1914.6,1914.4,15.2978]
[1743158805289,10.44629,1914.6,1914.4,0.7978]
[1743158805488,5.22311,1914.6,1914.3,12.01254184]
[1743158805686,5.22311,1914.6,1914.3,10.95275]
[1743158805858,10.44629,1914.6,1914.3,25.45275]
[1743158806054,8.60587554,1914.5,1914.3,14.5]
[1743158806294,5.22356,1914.4,1914.3,4.907]
[1743158807159,6.02071,1914.5,1914.3,4.907]
[1743158807359,10.44678,1914.5,1914.3,4.907]
[1743158807861,10.4468,1914.5,1914.3,4.907]
[1743158808054,5.22331,1914.5,1914.3,4.907]
[1743158808266,5.22312,1914.6,1914.3,4.907]
[1743158808470,10.44641,1914.6,1914.3,4.907]
[1743158808990,5.22312,1914.6,1914.4,0.7735]
[1743158809188,10.44631,1914.6,1914.4,0.7735]
[1743158809494,5.22312,1914.6,1914.5,14.5]
[1743158810064,6.82622455,1914.6,1914.5,14.5]
[1743158810570,6.82622455,1914.6,1914.3,4.907]
[1743158810764,5.22312,1914.6,1914.3,4.907]
[1743158810964,5.22312,1914.6,1914.4,14.5]
[1743158813195,8.22279,1914.7,1914.3,15.35445]
[1743158813771,13.44571,1914.7,1914.3,10.13063]
[1743158814089,8.22279,1914.7,1914.4,5.22356]
[1743158815200,8.22279,1914.7,1914.5,0.8085]
[1743158815414,3.0,1914.7,1914.5,6.03167]
[1743158815600,0.821,1915.1,1914.5,0.8085]
[1743158815909,5.22178,1915.1,1914.8,5.22232]
[1743158816103,5.22178,1915.1,1914.8,10.12932]
[1743158816409,2.58516554,1914.9,1914.8,4.907]
[1743158816699,8.66719909,1914.9,1914.8,4.907]
[1743158818770,5.2227,1914.8,1914.5,4.907]
[1743158819177,7.80783554,1914.8,1914.5,4.907]
[1743158819376,2.58516554,1914.8,1914.5,10.13021]
[1743158819581,5.22249,1914.8,1914.5,10.13021]
[1743158820085,5.22248,1914.8,1914.5,10.13015]
[1743158820390,7.80741554,1914.9,1914.5,10.92955]
[1743158820586,2.98596874,1915.1,1914.5,12.544976]
[1743158820792,5.2225,1914.8,1914.5,10.92967]
[1743158821194,13.02999554,1914.9,1914.5,10.92967]
[1743158821607,5.22249,1914.8,1914.5,10.92967]
[1743158821815,10.44516,1914.8,1914.5,5.7064]
[1743158821983,5.22249,1914.8,1914.5,5.7064]
[1743158822183,10.44514,1914.8,1914.5,5.7064]
[1743158822613,5.22249,1914.8,1914.5,5.7064]
[1743158822984,10.44513,1914.8,1914.5,5.7064]
[1743158823214,5.22249,1914.8,1914.5,5.7064]
[1743158823415,10.4452,1914.8,1914.5,5.7064]
[1743158823612,10.4452,1914.8,1913.6,0.79]
[1743158823613,5.22505,1913.9,1913.6,0.79]
[1743158823819,2.58516554,1913.7,1913.6,0.79]
[1743158823982,2.58516554,1913.7,1913.5,0.028229]
[1743158824191,7.81014554,1913.9,1913.5,5.254249]
[1743158824613,8.22535,1913.8,1913.5,0.028229]
[1743158824818,5.22557,1913.7,1913.5,0.028229]
[1743158825098,5.22557,1913.7,1913.6,5.012]
[1743158825894,7.81073554,1913.7,1913.6,5.012]
[1743158826234,7.81073554,1913.7,1913.5,0.028229]
[1743158826531,7.81091554,1913.6,1913.5,0.028229]
[1743158827800,7.81091554,1913.6,1913.5,0.12824989]
[1743158828005,5.22575,1913.6,1913.5,0.12824989]
[1743158828425,2.58516554,1913.7,1913.5,0.028229]
[1743158828797,2.58516554,1913.7,1913.6,0.10645027]
[1743158832197,2.58516554,1913.9,1913.6,0.10645027]
[1743158832408,3.0,1913.8,1913.6,0.10645027]
[1743158832607,2.58516554,1913.8,1913.6,0.10645027]
[1743158833631,2.58516554,1913.7,1913.6,0.10645027]
[1743158833820,2.58516554,1913.8,1913.6,0.10645027]
[1743158835434,2.58516554,1913.9,1913.6,0.10645027]
[1743158835933,2.97014413,1914.0,1913.6,0.10645027]
[1743158836341,2.58516554,1914.0,1913.6,0.10645027]
[1743158836840,3.41196554,1914.2,1913.6,0.10645027]
[1743158837042,3.41196554,1914.2,1913.7,0.7719]
[1743158837043,2.58516554,1914.2,1913.7,0.7719]
[1743158837213,3.0,1914.2,1913.7,0.7719]
[1743158837404,3.0,1914.2,1913.9,0.7719]
[1743158837616,5.58516554,1914.2,1913.9,0.7719]
[1743158837817,5.58516554,1914.2,1914.0,0.10487511]
[1743158838448,2.58516554,1914.1,1914.0,0.10487511]
[1743158839049,2.58516554,1914.1,1913.8,4.997]
[1743158839267,3.0,1914.3,1914.0,0.10487511]
[1743158839448,2.58516554,1914.1,1913.8,4.997]
[1743158839628,2.58516554,1914.2,1913.8,4.997]
[1743158840217,2.58516554,1914.5,1913.9,0.80774434]
[1743158840458,2.58516554,1914.5,1913.9,0.80774092]
[1743158840766,2.58516554,1914.5,1913.9,0.7555]
[1743158841124,2.58516554,1914.4,1913.9,0.7555]
[1743158841570,0.7889,1914.6,1913.9,0.7555]
[1743158841571,2.58516554,1914.3,1913.9,1.33075]
[1743158841782,2.58516554,1914.2,1914.0,5.0]
[1743158841988,2.58516554,1914.1,1914.0,5.0]
[1743158842682,2.58516554,1914.2,1914.0,5.0]
[1743158842840,2.58516554,1914.3,1914.0,5.0]
[1743158843690,2.58516554,1914.2,1914.0,5.0]
[1743158844290,2.58516554,1914.3,1914.0,5.0]
[1743158844489,7.80940554,1914.2,1914.0,5.0]
[1743158845593,5.22438,1914.1,1914.0,5.0]
[1743158848367,7.80954554,1914.1,1914.0,5.0]
[1743158848661,7.80954554,1914.1,1914.0,5.10146275]
[1743158851898,7.80954554,1914.1,1914.0,5.0]
[1743158852061,5.22475,1914.0,1913.7,0.7722]
[1743158852269,5.22496,1913.9,1913.8,4.982]
[1743158852809,5.22531,1913.8,1913.6,4.99]
[1743158853047,7.81063554,1913.7,1913.6,4.99]
[1743158853297,13.03633554,1913.7,1913.5,27.661229]
[1743158853502,5.22575,1913.6,1913.5,32.652229]
[1743158853879,7.81091554,1913.6,1913.5,32.652229]
[1743158854392,12.88815409,1913.6,1913.5,9e-06]
[1743158854608,21.48331963,1913.6,1913.5,9e-06]
[1743158856195,22.55336678,1913.6,1913.5,9e-06]
[1743158857798,22.95039488,1913.6,1913.5,9e-06]
[1743158863607,9.51158219,1913.6,1913.5,9e-06]
[1743158863783,9.51158219,1913.6,1913.5,0.10601459]
[1743158863784,8.20794364,1913.6,1913.5,0.10601459]